[Event "9th Amsterdam Science Park A 2019"]
[Site "Amsterdam"]
[Date "2019.07.07"]
[Round "2.5"]
[White "Kohler, Aran"]
[Black "Ulybin, Mikhail"]
[Result "0-1"]
[ECO "D00"]
[WhiteElo "2176"]
[BlackElo "2469"]
[Annotator "ChessBase"]
[PlyCount "94"]
[EventDate "2019.07.06"]
[EventType "swiss"]
[EventCountry "NED"]
[SourceTitle "playchess.com"]
[Source "ChessBase"]
[SourceQuality "1"]
[TimeControl "40/5400+30:1800+30"]

1. d4 {[%emt 0:01:14]} d5 {[%emt 0:09:17]} 2. Bf4 {[%emt 0:00:31]} c5 {[%emt 0:01:47]} 3. e3 {[%emt 0:03:07]} Nc6 {[%emt 0:01:39]} 4. c3 {[%emt 0:00:09]} Nf6 {[%emt 0:08:12]} 5. Nd2 {[%emt 0:01:24]} g6 {[%emt 0:05:08]} 6. Bd3 {[%emt 0:00:39]} Bg7 {[%emt 0:03:39]} 7. h3 {[%emt 0:05:40]} O-O {[%emt 0:06:17]} 8. dxc5 {[%emt 0:07:37]} Nd7 {[%emt 0:22:22]} 9. Nb3 {[%emt 0:06:55]} e5 {[%emt 0:00:44]} 10. Bg3 {[%emt 0:02:43]} Qe7 {[%emt 0:09:12]} 11. Bc2 {[%emt 0:00:08]} a5 {[%emt 0:18:44]} 12. a4 {[%emt 0:18:27]} Nxc5 {[%emt 0:01:19]} 13. Qxd5 {[%emt 0:00:46]} Nxb3 {[%emt 0:02:24]} 14. Qxb3 {[%emt 0:00:45]} Be6 {[%emt 0:00:28]} 15. Qa3 {[%emt 0:01:42]} Nb4 {[%emt 0:03:15]} 16. cxb4 {[%emt 0:02:21]} axb4 {[%emt 0:00:03]} 17. Qd3 {[%emt 0:00:08]} Rac8 {[%emt 0:01:19]} 18. Nf3 {[%emt 0:17:11]} b3 {[%emt 0:02:16]} 19. Bxb3 {[%emt 0:08:43]} Qb4+ {[%emt 0:00:21]} 20. Qd2 {[%emt 0:00:35]} Qxb3 {[%emt 0:00:06]} 21. O-O {[%emt 0:00:02]} Rfd8 {[%emt 0:00:34]} 22. Qa5 {[%emt 0:00:56]} Rd5 {[%emt 0:01:00]} 23. Qa7 {[%emt 0:00:23]} Bf8 {[%emt 0:00:47]} 24. Bxe5 {[%emt 0:02:05]} Bc5 {[%emt 0:00:21]} 25. Qa5 {[%emt 0:00:00]} Bd6 {[%emt 0:00:39]} 26. Qc3 {[%emt 0:04:22]} Rxc3 {[%emt 0:00:20]} 27. Bxc3 {[%emt 0:00:01]} Bc5 {[%emt 0:00:33]} 28. Nd2 {[%emt 0:00:28]} Qc2 {[%emt 0:00:25]} 29. Rfc1 {[%emt 0:00:56]} Qd3 {[%emt 0:00:12]} 30. Nf1 {[%emt 0:00:41]} h5 {[%emt 0:00:31]} 31. a5 {[%emt 0:00:15]} h4 {[%emt 0:00:23]} 32. Bf6 {[%emt 0:00:07]} g5 {[%emt 0:00:34]} 33. Ra4 {[%emt 0:00:25]} Rf5 {[%emt 0:00:27]} 34. Bc3 {[%emt 0:00:30]} Qe2 {[%emt 0:00:30]} 35. Be1 {[%emt 0:00:04]} Bd5 {[%emt 0:01:01]} 36. b4 {[%emt 0:02:04]} Bd6 {[%emt 0:00:31]} 37. b5 {[%emt 0:00:58]} Qxb5 {[%emt 0:00:26]} 38. Rg4 {[%emt 0:01:14]} Bc6 {[%emt 0:00:19]} 39. f4 {[%emt 0:01:25]} f6 {[%emt 0:00:35]} 40. Bxh4 {[%emt 0:00:27]} Qxa5 {[%emt 0:00:34]} 41. Rd1 {[%emt 0:31:36]} Rd5 {[%emt 0:12:44]} 42. Rxd5 {[%emt 0:00:00]} Qxd5 {[%emt 0:04:47]} 43. Bxg5 {[%emt 0:00:00]} Kf7 {[%emt 0:04:04]} 44. Bh6 {[%emt 0:00:00]} b5 {[%emt 0:01:09]} 45. Rg7+ {[%emt 0:00:00]} Ke8 {[%emt 0:00:44]} 46. h4 {[%emt 0:00:00]} Bf8 {[%emt 0:01:49]} 47. e4 {[%emt 0:00:00]} Qd4+ {[%emt 0:00:47]} 0-1

[Event "9th Amsterdam Science Park A 2019"]
[Site "Amsterdam"]
[Date "2019.07.07"]
[Round "2.6"]
[White "Zwirs, Nico"]
[Black "Smirnova, Ekaterina"]
[Result "1-0"]
[ECO "C10"]
[WhiteElo "2380"]
[BlackElo "2184"]
[Annotator "NA"]
[PlyCount "95"]
[EventDate "2019.07.06"]
[EventType "swiss"]
[EventCountry "NED"]
[SourceTitle "playchess.com"]
[Source "ChessBase"]
[SourceQuality "1"]
[TimeControl "40/5400+30:1800+30"]

1. e4 {[%emt 0:00:00]} e6 {[%emt 0:00:00]} 2. d4 {[%emt 0:00:04]} d5 {[%emt 0:00:00]} 3. Nc3 {[%emt 0:00:06]} dxe4 {[%emt 0:00:00]} 4. Nxe4 {[%emt 0:00:06]} Bd7 {[%emt 0:00:00]} 5. Nf3 {[%emt 0:00:17]} Bc6 {[%emt 0:00:00]} 6. Bd3 {[%emt 0:00:07]} Nd7 {[%emt 0:00:00]} 7. c3 {[%emt 0:00:25]} Ngf6 {[%emt 0:00:23]} 8. Nxf6+ {[%emt 0:00:21]} Qxf6 {[%emt 0:01:33]} 9. Bg5 {[%emt 0:04:53]} Bxf3 {[%emt 0:00:07]} 10. Qd2 {[%emt 0:00:12]} Bxg2 {[%emt 0:00:27]} 11. Bxf6 {[%emt 0:00:11]} Bxh1 {[%emt 0:00:11]} 12. Bh4 {[%emt 0:00:35]} g6 {[%emt 0:12:53]} 13. O-O-O {[%emt 0:04:35]} Bf3 {[%emt 0:08:46]} 14. Re1 {[%emt 0:03:42]} Bh5 {[%emt 0:16:04]} 15. d5 {[%emt 0:06:18]} e5 {[%emt 0:00:49]} 16. Bb5 {[%emt 0:00:26]} Bg7 {[%emt 0:07:43]} 17. f4 {[%emt 0:01:15]} Bg4 {[%emt 0:00:18]} 18. fxe5 {[%emt 0:03:07]} O-O {[%emt 0:00:26]} 19. Bxd7 {[%emt 0:11:47]} Bxd7 {[%emt 0:00:01]} 20. e6 {[%emt 0:00:20]} fxe6 {[%emt 0:01:02]} 21. dxe6 {[%emt 0:00:49]} Bc6 {[%emt 0:01:06]} 22. e7 {[%emt 0:00:05]} Rfe8 {[%emt 0:00:07]} 23. Qf4 {[%emt 0:00:09]} Rac8 {[%emt 0:01:04]} 24. Bf6 {[%emt 0:01:47]} Bxf6 {[%emt 0:00:30]} 25. Qxf6 {[%emt 0:00:05]} Bd7 {[%emt 0:00:07]} 26. h4 {[%emt 0:01:47]} c5 {[%emt 0:00:08]} 27. Rf1 {[%emt 0:05:17]} Bf5 {[%emt 0:00:09]} 28. Rxf5 {[%emt 0:00:35]} gxf5 {[%emt 0:00:03]} 29. Qe6+ {[%emt 0:00:06]} Kg7 {[%emt 0:01:51]} 30. h5 {[%emt 0:00:05]} h6 {[%emt 0:00:10]} 31. Qg6+ {[%emt 0:00:06]} Kh8 {[%emt 0:00:03]} 32. Qxh6+ {[%emt 0:00:05]} Kg8 {[%emt 0:00:02]} 33. Qg6+ {[%emt 0:01:27]} Kh8 {[%emt 0:00:02]} 34. Qf6+ {[%emt 0:00:42]} Kh7 {[%emt 0:00:21]} 35. Qxf5+ {[%emt 0:00:06]} Kh8 {[%emt 0:00:17]} 36. Qf6+ {[%emt 0:02:43]} Kh7 {[%emt 0:00:06]} 37. Qg6+ {[%emt 0:00:04]} Kh8 {[%emt 0:00:04]} 38. Qf6+ {[%emt 0:01:35]} Kh7 {[%emt 0:00:03]} 39. Qf7+ {[%emt 0:00:03]} Kh8 {[%emt 0:00:04]} 40. h6 {[%emt 0:00:25]} Rg8 {[%emt 0:00:09]} 41. Kd2 {[%emt 0:31:24]} c4 {[%emt 0:31:10]} 42. Ke3 {[%emt 0:01:03]} b5 {[%emt 0:02:33]} 43. Ke4 {[%emt 0:01:08]} a5 {[%emt 0:00:08]} 44. h7 {[%emt 0:02:36]} Rge8 {[%emt 0:00:06]} 45. Kd5 {[%emt 0:00:49]} b4 {[%emt 0:00:45]} 46. Ke6 {[%emt 0:00:36]} a4 {[%emt 0:01:11]} 47. Qf6+ {[%emt 0:00:29]} Kxh7 {[%emt 0:00:01]} 48. Kf7 {[%emt 0:00:07]} 1-0

[Event "9th Amsterdam Science Park A 2019"]
[Site "Amsterdam"]
[Date "2019.07.07"]
[Round "2.7"]
[White "Van der Lende, Ilias"]
[Black "Goes, Sten"]
[Result "1-0"]
[ECO "A48"]
[WhiteElo "2350"]
[BlackElo "2183"]
[Annotator "NA"]
[PlyCount "53"]
[EventDate "2019.07.06"]
[EventType "swiss"]
[EventCountry "NED"]
[SourceTitle "playchess.com"]
[Source "ChessBase"]
[SourceQuality "1"]
[TimeControl "40/5400+30:1800+30"]

1. d4 {[%emt 0:00:00]} Nf6 {[%emt 0:00:00]} 2. Nf3 {[%emt 0:00:16]} g6 {[%emt 0:00:00]} 3. Nc3 {[%emt 0:00:05]} d5 {[%emt 0:00:42]} 4. Bf4 {[%emt 0:00:06]} Bg7 {[%emt 0:00:55]} 5. Nb5 {[%emt 0:00:10]} Na6 {[%emt 0:00:27]} 6. e3 {[%emt 0:00:13]} Ne4 {[%emt 0:05:19]} 7. Nd2 {[%emt 0:05:24]} Nxd2 {[%emt 0:18:37]} 8. Qxd2 {[%emt 0:00:09]} c6 {[%emt 0:00:46]} 9. Nc3 {[%emt 0:00:12]} b6 {[%emt 0:06:29]} 10. O-O-O {[%emt 0:05:03]} O-O {[%emt 0:12:56]} 11. h4 {[%emt 0:02:47]} f6 {[%emt 0:05:07]} 12. e4 {[%emt 0:01:53]} e6 {[%emt 0:07:01]} 13. h5 {[%emt 0:07:28]} Qd7 {[%emt 0:07:29]} 14. hxg6 {[%emt 0:03:01]} hxg6 {[%emt 0:00:15]} 15. Bh6 {[%emt 0:01:23]} dxe4 {[%emt 0:04:33]} 16. Nxe4 {[%emt 0:03:06]} Nc7 {[%emt 0:01:14]} 17. Bd3 {[%emt 0:04:41]} Ba6 {[%emt 0:01:51]} 18. Bxa6 {[%emt 0:01:03]} Nxa6 {[%emt 0:00:10]} 19. Rh3 {[%emt 0:00:16]} Nc7 {[%emt 0:06:08]} 20. Rdh1 {[%emt 0:02:08]} Rad8 {[%emt 0:02:27]} 21. Bxg7 {[%emt 0:01:17]} Qxg7 {[%emt 0:00:27]} 22. Rh8+ {[%emt 0:00:06]} Qxh8 {[%emt 0:00:58]} 23. Rxh8+ {[%emt 0:00:06]} Kxh8 {[%emt 0:00:04]} 24. Qh6+ {[%emt 0:00:06]} Kg8 {[%emt 0:00:04]} 25. Qxg6+ {[%emt 0:00:05]} Kh8 {[%emt 0:00:04]} 26. Nxf6 {[%emt 0:00:08]} Rxd4 {[%emt 0:00:57]} 27. Qh7# 1-0

[Event "9th Amsterdam Science Park A 2019"]
[Site "Amsterdam"]
[Date "2019.07.07"]
[Round "2.8"]
[White "Belous, Mikhail"]
[Black "Van Baar, Esper"]
[Result "1/2-1/2"]
[ECO "E81"]
[WhiteElo "2289"]
[BlackElo "2108"]
[Annotator "NA"]
[PlyCount "216"]
[EventDate "2019.07.06"]
[EventType "swiss"]
[EventCountry "NED"]
[SourceTitle "playchess.com"]
[Source "ChessBase"]
[SourceQuality "1"]
[TimeControl "40/5400+30:1800+30"]

1. d4 {[%emt 0:00:00]} Nf6 {[%emt 0:00:00]} 2. c4 {[%emt 0:00:00]} g6 {[%emt 0:00:29]} 3. f3 {[%emt 0:00:00]} Bg7 {[%emt 0:00:06]} 4. e4 {[%emt 0:00:10]} d6 {[%emt 0:00:02]} 5. Nc3 {[%emt 0:00:12]} O-O {[%emt 0:00:16]} 6. Be3 {[%emt 0:00:07]} c5 {[%emt 0:00:06]} 7. Nge2 {[%emt 0:00:19]} Qa5 {[%emt 0:01:00]} 8. d5 {[%emt 0:05:53]} b5 {[%emt 0:01:04]} 9. cxb5 {[%emt 0:01:50]} a6 {[%emt 0:00:27]} 10. b6 {[%emt 0:12:04]} Nbd7 {[%emt 0:01:05]} 11. Qd2 {[%emt 0:03:05]} Rb8 {[%emt 0:03:58]} 12. Nc1 {[%emt 0:01:55]} Ne5 {[%emt 0:05:32]} 13. Be2 {[%emt 0:03:03]} Qxb6 {[%emt 0:03:00]} 14. b4 {[%emt 0:08:08]} Nfd7 {[%emt 0:23:50]} 15. bxc5 {[%emt 0:09:05]} Qa5 {[%emt 0:04:21]} 16. Nd1 {[%emt 0:05:24]} Qxd2+ {[%emt 0:01:22]} 17. Kxd2 {[%emt 0:00:18]} Nxf3+ {[%emt 0:01:19]} 18. gxf3 {[%emt 0:00:10]} Bxa1 {[%emt 0:00:06]} 19. c6 {[%emt 0:09:01]} Nc5 {[%emt 0:07:36]} 20. Bxc5 {[%emt 0:01:07]} dxc5 {[%emt 0:00:04]} 21. Nb3 {[%emt 0:00:32]} Bd4 {[%emt 0:00:04]} 22. f4 {[%emt 0:06:10]} Rb4 {[%emt 0:03:46]} 23. e5 {[%emt 0:05:01]} Rd8 {[%emt 0:01:57]} 24. Bf3 {[%emt 0:01:07]} Ra4 {[%emt 0:04:19]} 25. Re1 {[%emt 0:08:37]} Kf8 {[%emt 0:11:01]} 26. Nc1 {[%emt 0:11:32]} f6 {[%emt 0:06:46]} 27. h4 {[%emt 0:00:45]} Ra3 {[%emt 0:01:55]} 28. Nb3 {[%emt 0:02:30]} Rxa2+ {[%emt 0:00:29]} 29. Kd3 {[%emt 0:00:06]} Ra3 {[%emt 0:02:43]} 30. Kc2 {[%emt 0:00:07]} Bf5+ {[%emt 0:03:02]} 31. Be4 {[%emt 0:00:12]} Bxe4+ {[%emt 0:03:18]} 32. Rxe4 {[%emt 0:00:06]} fxe5 {[%emt 0:03:31]} 33. fxe5 {[%emt 0:00:15]} Ra4 {[%emt 0:02:03]} 34. d6 {[%emt 0:01:34]} exd6 {[%emt 0:00:47]} 35. c7 {[%emt 0:00:29]} Rc8 {[%emt 0:05:06]} 36. exd6 {[%emt 0:00:07]} Rb4 {[%emt 0:00:50]} 37. d7 {[%emt 0:02:08]} Rbb8 {[%emt 0:00:11]} 38. cxb8=Q {[%emt 0:01:30]} Rxb8 {[%emt 0:00:02]} 39. Nxd4 {[%emt 0:01:32]} cxd4 {[%emt 0:00:02]} 40. Rxd4 {[%emt 0:01:11]} Ke7 {[%emt 0:01:03]} 41. Ne3 {[%emt 0:04:10]} Rd8 {[%emt 0:03:57]} 42. Ra4 {[%emt 0:05:33]} Rxd7 {[%emt 0:01:43]} 43. Rxa6 {[%emt 0:00:09]} Kf7 {[%emt 0:02:56]} 44. Kc3 {[%emt 0:01:22]} Kg7 {[%emt 0:01:42]} 45. Ra4 {[%emt 0:05:16]} Kf6 {[%emt 0:09:46]} 46. Rf4+ {[%emt 0:02:44]} Ke5 {[%emt 0:00:33]} 47. Rf8 {[%emt 0:02:51]} Ke4 {[%emt 0:02:45]} 48. Ng4 {[%emt 0:00:13]} Rd3+ {[%emt 0:02:17]} 49. Kc2 {[%emt 0:01:56]} Rf3 {[%emt 0:04:19]} 50. Nf2+ {[%emt 0:03:40]} Ke3 {[%emt 0:00:02]} 51. Nd1+ {[%emt 0:00:14]} Ke4 {[%emt 0:00:48]} 52. Nc3+ {[%emt 0:00:29]} Ke3 {[%emt 0:00:16]} 53. Nd1+ {[%emt 0:01:55]} Ke4 {[%emt 0:00:47]} 54. Nf2+ {[%emt 0:00:23]} Ke3 {[%emt 0:00:07]} 55. Ng4+ {[%emt 0:00:06]} Ke4 {[%emt 0:00:14]} 56. Nf6+ {[%emt 0:00:13]} Kf4 {[%emt 0:00:46]} 57. Nxh7+ {[%emt 0:01:03]} Kg3 {[%emt 0:00:59]} 58. Rg8 {[%emt 0:00:24]} Kxh4 {[%emt 0:00:18]} 59. Rxg6 {[%emt 0:00:14]} Kh5 {[%emt 0:01:47]} 60. Rc6 {[%emt 0:01:03]} Kg4 {[%emt 0:00:44]} 61. Nf6+ {[%emt 0:00:20]} Kf5 {[%emt 0:00:13]} 62. Nd5 {[%emt 0:00:17]} Ke5 {[%emt 0:00:34]} 63. Nc3 {[%emt 0:00:14]} Kd4 {[%emt 0:00:42]} 64. Kb3 {[%emt 0:00:35]} Rf8 {[%emt 0:01:46]} 65. Rd6+ {[%emt 0:00:20]} Ke5 {[%emt 0:00:27]} 66. Rd5+ {[%emt 0:00:15]} Ke6 {[%emt 0:00:01]} 67. Rd4 {[%emt 0:00:31]} Rc8 {[%emt 0:01:13]} 68. Kc2 {[%emt 0:00:06]} Rh8 {[%emt 0:00:02]} 69. Kd3 {[%emt 0:00:21]} Rh7 {[%emt 0:00:33]} 70. Re4+ {[%emt 0:00:10]} Kf5 {[%emt 0:00:17]} 71. Nd5 {[%emt 0:00:18]} Ra7 {[%emt 0:00:40]} 72. Ne3+ {[%emt 0:00:17]} Kf6 {[%emt 0:00:17]} 73. Ke2 {[%emt 0:00:14]} Ra6 {[%emt 0:00:56]} 74. Kf3 {[%emt 0:00:21]} Re6 {[%emt 0:01:11]} 75. Rd4 {[%emt 0:00:12]} Ke7 {[%emt 0:00:56]} 76. Nd5+ {[%emt 0:00:24]} Kd7 {[%emt 0:00:49]} 77. Nf4+ {[%emt 0:02:10]} Rd6 {[%emt 0:00:03]} 78. Ra4 {[%emt 0:00:11]} Rd1 {[%emt 0:00:14]} 79. Ke4 {[%emt 0:00:22]} Re1+ {[%emt 0:00:34]} 80. Kd4 {[%emt 0:00:29]} Rd1+ {[%emt 0:00:36]} 81. Nd3 {[%emt 0:00:11]} Ke6 {[%emt 0:00:39]} 82. Ke4 {[%emt 0:00:34]} Rh1 {[%emt 0:00:46]} 83. Ra6+ {[%emt 0:00:08]} Ke7 {[%emt 0:00:20]} 84. Kd4 {[%emt 0:00:55]} Rd1 {[%emt 0:01:04]} 85. Rh6 {[%emt 0:01:49]} Kf7 {[%emt 0:00:14]} 86. Ke4 {[%emt 0:00:12]} Kg7 {[%emt 0:00:33]} 87. Ra6 {[%emt 0:00:15]} Rh1 {[%emt 0:00:28]} 88. Kf5 {[%emt 0:00:22]} Rh5+ {[%emt 0:00:19]} 89. Kf4 {[%emt 0:00:04]} Rh4+ {[%emt 0:02:06]} 90. Kg5 {[%emt 0:00:10]} Rh1 {[%emt 0:00:29]} 91. Ra7+ {[%emt 0:00:05]} Kf8 {[%emt 0:00:08]} 92. Kf6 {[%emt 0:01:50]} Rh6+ {[%emt 0:00:19]} 93. Kf5 {[%emt 0:00:15]} Rh1 {[%emt 0:01:04]} 94. Ne5 {[%emt 0:00:29]} Rf1+ {[%emt 0:00:31]} 95. Ke6 {[%emt 0:00:06]} Re1 {[%emt 0:00:22]} 96. Rf7+ {[%emt 0:00:43]} Kg8 {[%emt 0:00:25]} 97. Rf2 {[%emt 0:00:11]} Kg7 {[%emt 0:00:35]} 98. Rg2+ {[%emt 0:00:15]} Kf8 {[%emt 0:00:33]} 99. Rg3 {[%emt 0:00:18]} Re2 {[%emt 0:00:33]} 100. Rg1 {[%emt 0:00:05]} Re3 {[%emt 0:00:19]} 101. Kf6 {[%emt 0:00:15]} Ra3 {[%emt 0:00:39]} 102. Rh1 {[%emt 0:02:28]} Ra6+ {[%emt 0:00:09]} 103. Kf5 {[%emt 0:00:04]} Ra2 {[%emt 0:00:45]} 104. Rh7 {[%emt 0:00:35]} Ra5 {[%emt 0:00:38]} 105. Rb7 {[%emt 0:01:16]} Ra1 {[%emt 0:00:24]} 106. Rc7 {[%emt 0:00:38]} Rf1+ {[%emt 0:00:24]} 107. Ke6 {[%emt 0:00:10]} Re1 {[%emt 0:00:22]} 108. Rc8+ {[%emt 0:00:52]} Kg7 {[%emt 0:00:07]} 1/2-1/2

[Event "9th Amsterdam Science Park A 2019"]
[Site "Amsterdam"]
[Date "2019.07.07"]
[Round "2.9"]
[White "De Groote, Ewoud"]
[Black "Pronk, Sven"]
[Result "1-0"]
[ECO "D02"]
[WhiteElo "2225"]
[BlackElo "2050"]
[Annotator "NA"]
[PlyCount "79"]
[EventDate "2019.07.06"]
[EventType "swiss"]
[EventCountry "NED"]
[SourceTitle "playchess.com"]
[Source "ChessBase"]
[SourceQuality "1"]
[TimeControl "40/5400+30:1800+30"]

1. d4 {[%emt 0:00:00]} d5 {[%emt 0:02:36]} 2. Nf3 {[%emt 0:00:00]} Nf6 {[%emt 0:00:21]} 3. c4 {[%emt 0:00:00]} c6 {[%emt 0:01:24]} 4. Qc2 {[%emt 0:00:00]} e6 {[%emt 0:00:56]} 5. Bg5 {[%emt 0:00:12]} Nbd7 {[%emt 0:01:30]} 6. e3 {[%emt 0:00:18]} Bb4+ {[%emt 0:02:25]} 7. Nbd2 {[%emt 0:02:27]} Qa5 {[%emt 0:12:11]} 8. cxd5 {[%emt 0:00:43]} exd5 {[%emt 0:04:39]} 9. Bd3 {[%emt 0:00:26]} O-O {[%emt 0:01:04]} 10. O-O {[%emt 0:03:10]} a6 {[%emt 0:08:08]} 11. a3 {[%emt 0:11:56]} Bd6 {[%emt 0:01:10]} 12. Rfe1 {[%emt 0:00:30]} Re8 {[%emt 0:01:14]} 13. e4 {[%emt 0:04:11]} dxe4 {[%emt 0:03:41]} 14. Nxe4 {[%emt 0:00:19]} Nxe4 {[%emt 0:01:18]} 15. Bxe4 {[%emt 0:00:07]} g6 {[%emt 0:00:35]} 16. Bxc6 {[%emt 0:06:00]} Rxe1+ {[%emt 0:07:03]} 17. Rxe1 {[%emt 0:00:02]} Nf8 {[%emt 0:10:43]} 18. Be4 {[%emt 0:01:05]} Bg4 {[%emt 0:00:14]} 19. Qd2 {[%emt 0:00:51]} Qb6 {[%emt 0:01:42]} 20. Ne5 {[%emt 0:00:39]} Bxe5 {[%emt 0:02:04]} 21. dxe5 {[%emt 0:00:02]} Re8 {[%emt 0:01:58]} 22. Be3 {[%emt 0:02:26]} Qc7 {[%emt 0:01:53]} 23. f4 {[%emt 0:00:26]} g5 {[%emt 0:04:12]} 24. f5 {[%emt 0:19:25]} Qxe5 {[%emt 0:02:52]} 25. Bd4 {[%emt 0:00:13]} Qf4 {[%emt 0:01:41]} 26. Qxf4 {[%emt 0:00:16]} gxf4 {[%emt 0:00:02]} 27. Kf2 {[%emt 0:00:01]} Rd8 {[%emt 0:02:35]} 28. Bc3 {[%emt 0:00:02]} b6 {[%emt 0:00:59]} 29. h3 {[%emt 0:00:46]} Bd1 {[%emt 0:00:54]} 30. g3 {[%emt 0:00:28]} fxg3+ {[%emt 0:00:52]} 31. Kxg3 {[%emt 0:00:02]} Ba4 {[%emt 0:01:20]} 32. Bf3 {[%emt 0:01:54]} Nd7 {[%emt 0:04:01]} 33. Re4 {[%emt 0:02:14]} Bc2 {[%emt 0:05:24]} 34. Rg4+ {[%emt 0:02:35]} Kf8 {[%emt 0:00:01]} 35. Kf4 {[%emt 0:01:10]} Nc5 {[%emt 0:03:24]} 36. Rg2 {[%emt 0:07:02]} Bd3 {[%emt 0:02:15]} 37. Rg7 {[%emt 0:01:10]} h6 {[%emt 0:02:40]} 38. Rh7 {[%emt 0:02:38]} Bc4 {[%emt 0:05:08]} 39. Bf6 {[%emt 0:00:51]} Nd3+ {[%emt 0:00:59]} 40. Kg3 {[%emt 0:00:10]} 1-0

[Event "9th Amsterdam Science Park A 2019"]
[Site "Amsterdam"]
[Date "2019.07.07"]
[Round "2.10"]
[White "Ballon, Guenther"]
[Black "Baarslag, Ed"]
[Result "1/2-1/2"]
[ECO "A57"]
[WhiteElo "2089"]
[BlackElo "2220"]
[Annotator "NA"]
[PlyCount "86"]
[EventDate "2019.07.06"]
[EventType "swiss"]
[EventCountry "NED"]
[SourceTitle "playchess.com"]
[Source "ChessBase"]
[SourceQuality "1"]
[TimeControl "40/5400+30:1800+30"]

1. d4 {[%emt 0:00:00]} Nf6 {[%emt 0:00:00]} 2. c4 {[%emt 0:00:00]} c5 {[%emt 0:00:00]} 3. d5 {[%emt 0:00:59]} b5 {[%emt 0:00:16]} 4. cxb5 {[%emt 0:00:33]} a6 {[%emt 0:00:10]} 5. e3 {[%emt 0:01:02]} g6 {[%emt 0:00:24]} 6. Nc3 {[%emt 0:00:20]} Bg7 {[%emt 0:00:14]} 7. Nf3 {[%emt 0:02:45]} O-O {[%emt 0:00:40]} 8. a4 {[%emt 0:04:27]} Bb7 {[%emt 0:03:55]} 9. Be2 {[%emt 0:04:06]} axb5 {[%emt 0:03:00]} 10. Bxb5 {[%emt 0:00:09]} d6 {[%emt 0:01:05]} 11. O-O {[%emt 0:00:55]} Nbd7 {[%emt 0:01:48]} 12. h3 {[%emt 0:01:11]} Nb6 {[%emt 0:01:28]} 13. e4 {[%emt 0:00:40]} Ba6 {[%emt 0:05:52]} 14. Bg5 {[%emt 0:06:53]} Ne8 {[%emt 0:10:12]} 15. Qe2 {[%emt 0:08:30]} Nc7 {[%emt 0:01:04]} 16. Rfc1 {[%emt 0:20:21]} h6 {[%emt 0:10:01]} 17. Bf4 {[%emt 0:02:50]} Kh7 {[%emt 0:07:00]} 18. Nd2 {[%emt 0:06:59]} Bxb5 {[%emt 0:14:23]} 19. axb5 {[%emt 0:00:18]} Qd7 {[%emt 0:00:28]} 20. Nc4 {[%emt 0:01:12]} Nxc4 {[%emt 0:00:42]} 21. Qxc4 {[%emt 0:00:05]} Bxc3 {[%emt 0:01:13]} 22. bxc3 {[%emt 0:01:11]} Qxb5 {[%emt 0:08:12]} 23. Qxb5 {[%emt 0:00:13]} Nxb5 {[%emt 0:00:04]} 24. Rab1 {[%emt 0:00:38]} Na3 {[%emt 0:05:44]} 25. Rb7 {[%emt 0:00:37]} Rfe8 {[%emt 0:00:31]} 26. Ra1 {[%emt 0:02:38]} Kg7 {[%emt 0:02:38]} 27. e5 {[%emt 0:00:58]} g5 {[%emt 0:03:23]} 28. Bg3 {[%emt 0:02:17]} Nc4 {[%emt 0:05:43]} 29. Rxa8 {[%emt 0:08:11]} Rxa8 {[%emt 0:00:03]} 30. exd6 {[%emt 0:02:43]} exd6 {[%emt 0:00:19]} 31. Rd7 {[%emt 0:01:16]} Ra6 {[%emt 0:00:18]} 32. Kf1 {[%emt 0:01:45]} Kf6 {[%emt 0:07:24]} 33. Ke2 {[%emt 0:00:44]} Ne5 {[%emt 0:00:34]} 34. Bxe5+ {[%emt 0:01:46]} Kxe5 {[%emt 0:00:12]} 35. Rxf7 {[%emt 0:00:22]} Kxd5 {[%emt 0:00:32]} 36. Kd3 {[%emt 0:00:51]} c4+ {[%emt 0:01:10]} 37. Ke2 {[%emt 0:02:38]} Ra2+ {[%emt 0:00:43]} 38. Ke1 {[%emt 0:01:31]} Ke4 {[%emt 0:01:59]} 39. Rf3 {[%emt 0:00:09]} Ra1+ {[%emt 0:02:48]} 40. Ke2 {[%emt 0:00:19]} Ra2+ {[%emt 0:00:12]} 41. Ke1 {[%emt 0:30:06]} Ra1+ {[%emt 0:04:58]} 42. Ke2 {[%emt 0:00:00]} Ra2+ {[%emt 0:00:15]} 43. Ke1 Kd5 1/2-1/2

[Event "9th Amsterdam Science Park A 2019"]
[Site "Amsterdam"]
[Date "2019.07.07"]
[Round "2.11"]
[White "Cornelisse, Ticho"]
[Black "De Ruiter, Danny"]
[Result "1/2-1/2"]
[ECO "A45"]
[WhiteElo "2067"]
[BlackElo "2310"]
[Annotator "NA"]
[PlyCount "98"]
[EventDate "2019.07.06"]
[EventType "swiss"]
[EventCountry "NED"]
[SourceTitle "playchess.com"]
[Source "ChessBase"]
[SourceQuality "1"]
[TimeControl "40/5400+30:1800+30"]

1. d4 {[%emt 0:00:00]} Nf6 {[%emt 0:00:30]} 2. g3 {[%emt 0:00:00]} d5 {[%emt 0:00:37]} 3. c4 {[%emt 0:00:00]} c6 {[%emt 0:04:15]} 4. Nc3 {[%emt 0:01:05]} e6 {[%emt 0:00:57]} 5. Bg2 {[%emt 0:00:11]} Be7 {[%emt 0:00:33]} 6. Nf3 {[%emt 0:00:06]} O-O {[%emt 0:00:08]} 7. O-O {[%emt 0:00:03]} Nbd7 {[%emt 0:01:18]} 8. Nd2 {[%emt 0:00:07]} dxc4 {[%emt 0:09:13]} 9. Nxc4 {[%emt 0:01:59]} Nd5 {[%emt 0:00:09]} 10. e4 {[%emt 0:07:14]} N5b6 {[%emt 0:06:10]} 11. Ne3 {[%emt 0:05:28]} c5 {[%emt 0:01:15]} 12. d5 {[%emt 0:01:33]} Ne5 {[%emt 0:01:33]} 13. Qe2 {[%emt 0:07:17]} exd5 {[%emt 0:06:46]} 14. Nexd5 {[%emt 0:07:59]} Bd6 {[%emt 0:01:06]} 15. Ne3 {[%emt 0:08:07]} Nc6 {[%emt 0:02:38]} 16. Nb5 {[%emt 0:04:49]} Be5 {[%emt 0:03:41]} 17. Rd1 {[%emt 0:00:50]} Bd7 {[%emt 0:00:08]} 18. f4 {[%emt 0:03:29]} Nd4 {[%emt 0:05:02]} 19. Nxd4 {[%emt 0:00:21]} Bxd4 {[%emt 0:00:06]} 20. Kh1 {[%emt 0:00:33]} Qe8 {[%emt 0:00:09]} 21. Rb1 {[%emt 0:07:08]} Bb5 {[%emt 0:02:48]} 22. Qc2 {[%emt 0:06:25]} g6 {[%emt 0:03:09]} 23. Ng4 {[%emt 0:11:52]} f5 {[%emt 0:07:08]} 24. Ne5 {[%emt 0:06:04]} Bxe5 {[%emt 0:04:15]} 25. fxe5 {[%emt 0:00:05]} fxe4 {[%emt 0:00:08]} 26. Bxe4 {[%emt 0:03:37]} Qxe5 {[%emt 0:01:28]} 27. Bf4 {[%emt 0:02:19]} Qxe4+ {[%emt 0:01:02]} 28. Qxe4 {[%emt 0:00:19]} Bc6 {[%emt 0:00:06]} 29. Qxc6 {[%emt 0:00:25]} bxc6 {[%emt 0:00:06]} 30. Rd6 {[%emt 0:04:06]} Rac8 {[%emt 0:02:53]} 31. Rc1 {[%emt 0:05:42]} c4 {[%emt 0:01:44]} 32. Kg1 {[%emt 0:01:34]} Rf5 {[%emt 0:02:31]} 33. Re1 {[%emt 0:01:49]} Rd5 {[%emt 0:07:55]} 34. Rde6 {[%emt 0:00:24]} Rd7 {[%emt 0:00:09]} 35. R1e4 {[%emt 0:00:21]} Kf7 {[%emt 0:03:40]} 36. Bg5 {[%emt 0:00:28]} Nd5 {[%emt 0:00:13]} 37. R6e5 {[%emt 0:00:57]} Rb8 {[%emt 0:01:37]} 38. Re2 {[%emt 0:00:50]} Rdb7 {[%emt 0:01:56]} 39. Rf2+ {[%emt 0:00:37]} Kg7 {[%emt 0:02:42]} 40. Ree2 {[%emt 0:01:51]} h6 {[%emt 0:03:14]} 41. Bc1 {[%emt 0:31:31]} Rd8 {[%emt 0:44:14]} 42. a3 {[%emt 0:00:00]} Rdd7 {[%emt 0:00:00]} 43. Rc2 {[%emt 0:00:00]} Nb6 {[%emt 0:00:00]} 44. Be3 {[%emt 0:00:00]} Rd1+ {[%emt 0:00:00]} 45. Rf1 {[%emt 0:00:00]} Rbd7 {[%emt 0:00:00]} 46. Bxb6 {[%emt 0:00:00]} axb6 {[%emt 0:00:00]} 47. Rxc4 {[%emt 0:00:00]} c5 {[%emt 0:00:00]} 48. Rc2 {[%emt 0:00:00]} Rxf1+ {[%emt 0:00:00]} 49. Kxf1 {[%emt 0:00:00]} Kf6 {[%emt 0:00:00]} 1/2-1/2